Workbook

Sheet ESTIMATE
C1: PROJECT: AMAZING EXPLORERS YULEE | N1: Web: http://sigmaestimations.com Email: info@sigmaestimations.com
C3: ADDRESS: YULEE, FLORIDA
A5: ITEM # | B5: DWG # | C5: CSI #/SUB DETAIL | D5: DESCRIPTION | E5: QTY. | F5: WASTE | G5: QTY. W/ WASTE | H5: UNIT | I5: UNIT LABOR HOURS | J5: TOTAL LABOR HOURS | K5: PER HOUR LABOR RATE | L5: TOTAL LABOR COST | M5: UNIT MATERIAL COST | N5: TOTAL MATERIAL COST | O5: ITEM COST | P5: TRADE COST
C6: 010000 | D6: DIVISION 01 — GENERAL REQUIREMENTS
A7: =IF(H7<>"",1+MAX(A1:A6),"") -> 1 | D7: Submittal Procedures | E7: 1 | F7: 0% | G7: =E7+(E7*F7) -> 1 | H7: LS | I7: 0.00 | J7: =I7*G7 -> 0.00 | K7: 0 | L7: =K7*J7 -> 0 | M7: 0 | N7: =M7*G7 -> 0 | O7: =L7+N7 -> 0
A8: =IF(H8<>"",1+MAX(A2:A7),"") -> 2 | D8: Temporary Facilities and Controls | E8: 1 | F8: 0% | G8: 1 | H8: LS | I8: 0.00 | J8: =I8*G8 -> 0.00 | K8: 0 | L8: =K8*J8 -> 0 | M8: 0 | N8: =M8*G8 -> 0 | O8: =L8+N8 -> 0
A9: =IF(H9<>"",1+MAX(A3:A8),"") -> 3 | D9: Closeout Procedures | E9: 1 | F9: 0% | G9: 1 | H9: LS | I9: 0.00 | J9: 0.00 | K9: 0 | L9: 0 | M9: 0 | N9: 0 | O9: 0
A10: =IF(H10<>"",1+MAX(A4:A9),"") -> 4 | D10: Payment Procedures | E10: 1 | F10: 0% | G10: 1 | H10: LS | I10: 0.00 | J10: 0.00 | K10: 0 | L10: 0 | M10: 0 | N10: 0 | O10: 0
A11: =IF(H11<>"",1+MAX(A5:A10),"") -> 5 | D11: Contract Modification Procedures | E11: 1 | F11: 0% | G11: 1 | H11: LS | I11: 0.00 | J11: 0.00 | K11: 0 | L11: 0 | M11: 0 | N11: 0 | O11: 0
A12: =IF(H12<>"",1+MAX(A1:A11),"") -> 6 | D12: Maintenance & Traffic Protection | E12: 1 | F12: 0% | G12: 1 | H12: LS | I12: 0.00 | J12: 0.00 | K12: 0 | L12: 0 | M12: 0 | N12: 0 | O12: 0
A13: =IF(H13<>"",1+MAX(A2:A12),"") -> 7 | D13: Video Camera Inspection For Sanitary and Storm drain Pipes (559 LF) | E13: 1 | F13: 0% | G13: =E13+(E13*F13) -> 1 | H13: LS | I13: 0.00 | J13: 0.00 | K13: 0 | L13: 0 | M13: 0 | N13: =M13*G13 -> 0 | O13: $740
A14: =IF(H14<>"",1+MAX(A3:A13),"") ->  | D14: SUBTOTAL | L14: =IF(H14<>"",0.4*N14,"") ->  | M14: =IF(H14<>"",N14-L14,"") ->  | P14: =SUM(O7:O13) -> $740
C15: 230000 | D15: DIVISION 23 — HEATING, VENTILATION, AND AIR CONDITIONING (HVAC)
D17: DUCTOWRK
D19: Supply Ducts
A20: 8 | B20: M3-M4 | C20: M1-M-2 | D20: 26x16 Supply Duct | E20: 18 | F20: 5% | G20: =E20+(E20*F20) -> 19 | H20: LF | I20: 0.32 | J20: =I20*G20 -> 6.07 | K20: $38.67 | L20: =K20*J20 -> $234.75 | M20: $41.80 | N20: =M20*G20 -> $781.15 | O20: =L20+N20 -> $1,016
A21: 9 | B21: M3-M4 | C21: M1-M-2 | D21: 22x16 Supply Duct | E21: 7 | F21: 5% | G21: 7 | H21: LF | I21: 0.31 | J21: 2.16 | K21: $38.67 | L21: $83.50 | M21: $40.11 | N21: $280.88 | O21: $364
A22: 10 | B22: M3-M4 | C22: M1-M-2 | D22: 22x14 Supply Duct | E22: 61 | F22: 5% | G22: 64 | H22: LF | I22: 0.29 | J22: 18.68 | K22: $38.67 | L22: $722.16 | M22: $39.44 | N22: $2,524.19 | O22: $3,246
A23: 11 | B23: M3-M4 | C23: M1-M-2 | D23: 20x14 Supply Duct | E23: 27 | F23: 5% | G23: 29 | H23: LF | I23: 0.28 | J23: 7.87 | K23: $38.67 | L23: $304.39 | M23: $38.57 | N23: $1,102.80 | O23: $1,407
A24: 12 | B24: M3-M4 | C24: M1-M-2 | D24: 18x14 Supply Duct | E24: 31 | F24: 5% | G24: 33 | H24: LF | I24: 0.26 | J24: 8.48 | K24: $38.67 | L24: $327.97 | M24: $37.19 | N24: $1,218.83 | O24: $1,547
A25: 13 | B25: M3-M4 | C25: M1-M-2 | D25: 18x12 Supply Duct | E25: 22 | F25: 5% | G25: 24 | H25: LF | I25: 0.24 | J25: 5.71 | K25: $38.67 | L25: $220.68 | M25: $35.27 | N25: $830.64 | O25: $1,051
A26: 14 | B26: M3-M4 | C26: M1-M-2 | D26: 16x14 Supply Duct | E26: 64 | F26: 5% | G26: 68 | H26: LF | I26: 0.23 | J26: 15.27 | K26: $38.67 | L26: $590.46 | M26: $33.77 | N26: $2,283.80 | O26: $2,874
A27: 15 | B27: M3-M4 | C27: M1-M-2 | D27: 16x12 Supply Duct | E27: 21 | F27: 5% | G27: 22 | H27: LF | I27: 0.21 | J27: 4.67 | K27: $38.67 | L27: $180.60 | M27: $32.14 | N27: $717.03 | O27: $898
A28: 16 | B28: M3-M4 | C28: M1-M-2 | D28: 16x10 Supply Duct | E28: 7 | F28: 5% | G28: =E28+(E28*F28) -> 7 | H28: LF | I28: 0.21 | J28: 1.44 | K28: $38.67 | L28: $55.75 | M28: $30.85 | N28: $212.49 | O28: =L28+N28 -> $268
A29: 17 | B29: M3-M4 | C29: M1-M-2 | D29: 12x14 Supply Duct | E29: 18 | F29: 5% | G29: 19 | H29: LF | I29: 0.21 | J29: 3.96 | K29: $38.67 | L29: $153.06 | M29: $23.79 | N29: $449.88 | O29: $603
A30: 18 | B30: M3-M4 | C30: M1-M-2 | D30: 10x12 Supply Duct | E30: 48 | F30: 5% | G30: 50 | H30: LF | I30: 0.44 | J30: 22.09 | K30: $38.67 | L30: $854.40 | M30: $21.91 | N30: $1,099.41 | O30: $1,954
A31: 19 | B31: M3-M4 | C31: M1-M-2 | D31: 10x10 Supply Duct | E31: 16 | F31: 5% | G31: 17 | H31: LF | I31: 0.44 | J31: 7.39 | K31: $38.67 | L31: $285.63 | M31: $18.79 | N31: $315.19 | O31: $601
A32: 20 | B32: M3-M4 | C32: M1-M-2 | D32: 8x14 Supply Duct | E32: 7 | F32: 5% | G32: 7 | H32: LF | I32: 0.21 | J32: 1.47 | K32: $38.67 | L32: $56.86 | M32: $17.02 | N32: $119.54 | O32: $176
A33: 21 | B33: M3-M4 | C33: M1-M-2 | D33: 8x10 Supply Duct | E33: 53 | F33: 5% | G33: 55 | H33: LF | I33: 0.36 | J33: 19.80 | K33: $38.67 | L33: $765.64 | M33: $14.59 | N33: $807.12 | O33: $1,573
A34: 22 | B34: M3-M4 | C34: M1-M-2 | D34: 8x4 Supply Duct | E34: 40 | F34: 5% | G34: 42 | H34: LF | I34: 0.44 | J34: 18.31 | K34: $38.67 | L34: $708.01 | M34: $13.68 | N34: $568.79 | O34: $1,277
A35: 23 | B35: M3-M4 | C35: M1-M-2 | D35: 6x10 Supply Duct | E35: 28 | F35: 5% | G35: 29 | H35: LF | I35: 0.21 | J35: 6.09 | K35: $38.67 | L35: $235.33 | M35: $17.02 | N35: $494.80 | O35: $730
A36: 24 | B36: M3-M4 | C36: M1-M-2 | D36: 6x8 Supply Duct | E36: 21 | F36: 5% | G36: 22 | H36: LF | I36: 0.21 | J36: 4.51 | K36: $38.67 | L36: $174.22 | M36: $16.07 | N36: $345.86 | O36: $520
A37: 25 | B37: M3-M4 | C37: M1-M-2 | D37: 10" Dia Supply Duct | E37: 191 | F37: 5% | G37: 201 | H37: LF | I37: 0.39 | J37: 78.53 | K37: $38.67 | L37: $3,036.86 | M37: $14.04 | N37: $2,821.32 | O37: $5,858
A38: 26 | B38: M3-M4 | C38: M1-M-2 | D38: 8" Dia Supply Duct | E38: 82 | F38: 5% | G38: 87 | H38: LF | I38: 0.36 | J38: 30.98 | K38: $38.67 | L38: $1,197.86 | M38: $12.17 | N38: $1,053.41 | O38: $2,251
A39: 27 | B39: M3-M4 | C39: M1-M-2 | D39: 6" Dia Supply Duct | E39: 23 | F39: 5% | G39: =E39+(E39*F39) -> 24 | H39: LF | I39: 0.32 | J39: 7.85 | K39: $38.67 | L39: $303.60 | M39: $10.65 | N39: $257.35 | O39: =L39+N39 -> $561
D41: Return Ducts
A42: 28 | B42: M3-M4 | C42: M1-M-2 | D42: 26x16 Return Duct | E42: 21 | F42: 5% | G42: =E42+(E42*F42) -> 22 | H42: LF | I42: 0.44 | J42: =I42*G42 -> 9.48 | K42: $38.67 | L42: =K42*J42 -> $366.43 | M42: $23.79 | N42: =M42*G42 -> $512.08 | O42: =L42+N42 -> $879
A43: 29 | B43: M3-M4 | C43: M1-M-2 | D43: 18x14 Return Duct | E43: 32 | F43: 5% | G43: 33 | H43: LF | I43: 0.39 | J43: 12.93 | K43: $38.67 | L43: $500.05 | M43: $21.35 | N43: $706.60 | O43: $1,207
A44: 30 | B44: M3-M4 | C44: M1-M-2 | D44: 18x12 Return Duct | E44: 65 | F44: 5% | G44: 68 | H44: LF | I44: 0.37 | J44: 25.40 | K44: $38.67 | L44: $982.03 | M44: $20.18 | N44: $1,369.45 | O44: $2,351
A45: 31 | B45: M3-M4 | C45: M1-M-2 | D45: 16x12 Return Duct | E45: 122 | F45: 5% | G45: 128 | H45: LF | I45: 0.36 | J45: 45.68 | K45: $38.67 | L45: $1,766.35 | M45: $19.66 | N45: $2,510.40 | O45: $4,277
A46: 32 | B46: M3-M4 | C46: M1-M-2 | D46: 14x12 Return Duct | E46: 34 | F46: 5% | G46: 36 | H46: LF | I46: 0.31 | J46: 10.99 | K46: $38.67 | L46: $425.13 | M46: $18.83 | N46: $671.64 | O46: $1,097
A47: 33 | B47: M3-M4 | C47: M1-M-2 | D47: 12x12 Return Duct | E47: 26 | F47: 5% | G47: 28 | H47: LF | I47: 0.28 | J47: 7.64 | K47: $38.67 | L47: $295.35 | M47: $17.69 | N47: $490.92 | O47: $786
A48: 34 | B48: M3-M4 | C48: M1-M-2 | D48: 12x10 Return Duct | E48: 3 | F48: 5% | G48: 4 | H48: LF | I48: 0.32 | J48: 1.17 | K48: $38.67 | L48: $45.22 | M48: $15.31 | N48: $55.14 | O48: $100
A49: 35 | B49: M3-M4 | C49: M1-M-2 | D49: 12x8 Return Duct | E49: 6 | F49: 5% | G49: 7 | H49: LF | I49: 0.37 | J49: 2.53 | K49: $38.67 | L49: $97.70 | M49: $13.18 | N49: $88.98 | O49: $187
D51: Transfer Ducts
A52: 36 | B52: M3-M4 | C52: M1-M-2 | D52: 12x8 Transfer Duct | E52: 10 | F52: 5% | G52: =E52+(E52*F52) -> 10 | H52: LF | I52: 0.32 | J52: =I52*G52 -> 3.27 | K52: $38.67 | L52: =K52*J52 -> $126.31 | M52: $10.29 | N52: =M52*G52 -> $103.51 | O52: =L52+N52 -> $230
D54: Exhaust Duct
A55: 37 | B55: M3-M4 | C55: M1-M-2 | D55: 8" Dia Exhaust Duct | E55: 69 | F55: 5% | G55: =E55+(E55*F55) -> 73 | H55: LF | I55: 0.23 | J55: =I55*G55 -> 16.47 | K55: $38.67 | L55: =K55*J55 -> $636.79 | M55: $10.29 | N55: =M55*G55 -> $750.70 | O55: =L55+N55 -> $1,387
A56: 38 | B56: M3-M4 | C56: M1-M-2 | D56: 6" Dia Exhaust Duct | E56: 101 | F56: 5% | G56: =E56+(E56*F56) -> 106 | H56: LF | I56: 0.28 | J56: 29.18 | K56: $38.67 | L56: $1,128.22 | M56: $10.29 | N56: $1,090.82 | O56: $2,219
D58: Vent Duct
A59: 39 | B59: M3-M4 | C59: M1-M-2 | D59: 4" Dia Dryer Vent Duct | E59: 2 | F59: 5% | G59: =E59+(E59*F59) -> 2 | H59: LF | I59: 0.37 | J59: =I59*G59 -> 0.71 | K59: $38.67 | L59: =K59*J59 -> $27.35 | M59: $13.28 | N59: =M59*G59 -> $25.10 | O59: =L59+N59 -> $52
D61: Flexible Duct
A62: 40 | B62: M3-M4 | C62: M1-M-2 | D62: 12" Dia Flexible Duct | E62: 63 | F62: 5% | G62: =E62+(E62*F62) -> 66 | H62: LF | I62: 0.08 | J62: =I62*G62 -> 5.12 | K62: $38.67 | L62: =K62*J62 -> $197.88 | M62: $7.28 | N62: =M62*G62 -> $482.41 | O62: =L62+N62 -> $680
A63: 41 | B63: M3-M4 | C63: M1-M-2 | D63: 10" Dia Flexible Duct | E63: 190 | F63: 5% | G63: 199 | H63: LF | I63: 0.07 | J63: 14.08 | K63: $38.67 | L63: $544.64 | M63: $6.18 | N63: $1,232.52 | O63: $1,777
A64: 42 | B64: M3-M4 | C64: M1-M-2 | D64: 8" Dia Flexible Duct | E64: 49 | F64: 5% | G64: 52 | H64: LF | I64: 0.06 | J64: 3.31 | K64: $38.67 | L64: $127.81 | M64: $5.86 | N64: $302.54 | O64: $430
A65: 43 | B65: M3-M4 | C65: M1-M-2 | D65: 6" Dia Flexible Duct | E65: 31 | F65: 5% | G65: 32 | H65: LF | I65: 0.14 | J65: 4.48 | K65: $38.67 | L65: $173.39 | M65: $3.82 | N65: $122.42 | O65: $296
A66: 44 | B66: M3-M4 | C66: M1-M-2 | D66: 4" Dia Flexible Duct | E66: 107 | F66: 5% | G66: 113 | H66: LF | I66: 0.06 | J66: 6.47 | K66: $38.67 | L66: $250.12 | M66: $2.12 | N66: $238.81 | O66: $489
D68: For Duct Material: Supply & Return Ducts Material is Galvanized Steel Metal with Lock-Forming Quality G90 Coating, Mill Phosphatized Finish. Other Ducts shall be 26 GA Sheet Metal Ducts System with Lock-Forming Quality (SNAP-LOCK)
D70: Duct Insulation
A71: 45 | B71: M3-M4 | C71: M1-M-2 | D71: Mineral Fiberglass Blankets Bonded with Formaldehyde-Free Resin. Provide W/Kraft Paper, Reinforcing Scrim and Aluminum Foil having R-6 Value Manufacturer: JOHNs MANSVILLE MICRLITE FSK Alternate Insulation: Rigid Fiberglass Ducts Insulation With Interior Acrylic Coating | E71: =2105.15+1489.2+31.93+320.43 -> 3947 | F71: 5% | G71: =E71+(E71*F71) -> 4144 | H71: SF | I71: 0.02 | J71: =I71*G71 -> 101.20 | K71: $38.67 | L71: =K71*J71 -> $3,913.31 | M71: $1.22 | N71: =M71*G71 -> $5,055.74 | O71: =L71+N71 -> $8,969
D73: DUCT CONNECTIONS/ FITTINGS
D75: Duct Bend
A76: 46 | B76: M3-M4 | C76: M1-M-2 | D76: 26x16 90 Degree Duct Bend | E76: 4 | F76: 0% | G76: =E76+(E76*F76) -> 4 | H76: EA | I76: 0.14 | J76: =I76*G76 -> 0.56 | K76: $38.67 | L76: =K76*J76 -> $21.64 | M76: $4.22 | N76: =M76*G76 -> $16.88 | O76: =L76+N76 -> $39
A77: 47 | B77: M3-M4 | C77: M1-M-2 | D77: 22x14 90 Degree Duct Bend | E77: 4 | F77: 0% | G77: 4 | H77: EA | I77: 0.14 | J77: 0.56 | K77: $38.67 | L77: $21.64 | M77: $4.18 | N77: $16.72 | O77: $38
A78: =IF(H78<>"",1+MAX(A67:A77),"") -> 48 | B78: M3-M4 | C78: M1-M-2 | D78: 18x14 90 Degree Duct Bend | E78: 3 | F78: 0% | G78: 3 | H78: EA | I78: 0.14 | J78: 0.42 | K78: $38.67 | L78: $16.23 | M78: $4.13 | N78: $12.39 | O78: $29
A79: 49 | B79: M3-M4 | C79: M1-M-2 | D79: 18x12 90 Degree Duct Bend | E79: 6 | F79: 0% | G79: 6 | H79: EA | I79: 0.14 | J79: 0.84 | K79: $38.67 | L79: $32.46 | M79: $4.03 | N79: $24.18 | O79: $57
A80: 50 | B80: M3-M4 | C80: M1-M-2 | D80: 16x14 90 Degree Duct Bend | E80: 2 | F80: 0% | G80: 2 | H80: EA | I80: 0.14 | J80: 0.28 | K80: $38.67 | L80: $10.82 | M80: $3.92 | N80: $7.84 | O80: $19
A81: 51 | B81: M3-M4 | C81: M1-M-2 | D81: 16x12 90 Degree Duct Bend | E81: 12 | F81: 0% | G81: 12 | H81: EA | I81: 0.14 | J81: 1.68 | K81: $38.67 | L81: $64.93 | M81: $3.86 | N81: $46.32 | O81: $111
A82: 52 | B82: M3-M4 | C82: M1-M-2 | D82: 14x12 90 Degree Duct Bend | E82: 5 | F82: 0% | G82: 5 | H82: EA | I82: 0.14 | J82: 0.70 | K82: $38.67 | L82: $27.05 | M82: $3.72 | N82: $18.60 | O82: $46
A83: 53 | B83: M3-M4 | C83: M1-M-2 | D83: 12x12 90 Degree Duct Bend | E83: 3 | F83: 0% | G83: 3 | H83: EA | I83: 0.14 | J83: 0.42 | K83: $38.67 | L83: $16.23 | M83: $3.68 | N83: $11.04 | O83: $27
A84: 54 | B84: M3-M4 | C84: M1-M-2 | D84: 12x10 90 Degree Duct Bend | E84: 1 | F84: 0% | G84: 1 | H84: EA | I84: 0.14 | J84: 0.14 | K84: $38.67 | L84: $5.41 | M84: $3.53 | N84: $3.53 | O84: $9
A85: 55 | B85: M3-M4 | C85: M1-M-2 | D85: 12x8 90 Degree Duct Bend | E85: 5 | F85: 0% | G85: 5 | H85: EA | I85: 0.14 | J85: 0.70 | K85: $38.67 | L85: $27.05 | M85: $3.42 | N85: $17.10 | O85: $44
A86: 56 | B86: M3-M4 | C86: M1-M-2 | D86: 10x12 90 Degree Duct Bend | E86: 1 | F86: 0% | G86: 1 | H86: EA | I86: 0.14 | J86: 0.14 | K86: $38.67 | L86: $5.41 | M86: $3.39 | N86: $3.39 | O86: $9
A87: 57 | B87: M3-M4 | C87: M1-M-2 | D87: 10x10 90 Degree Duct Bend | E87: 2 | F87: 0% | G87: 2 | H87: EA | I87: 0.14 | J87: 0.28 | K87: $38.67 | L87: $10.82 | M87: $3.28 | N87: $6.56 | O87: $17
A88: 58 | B88: M3-M4 | C88: M1-M-2 | D88: 6x8 90 Degree Duct Bend | E88: 1 | F88: 0% | G88: 1 | H88: EA | I88: 0.14 | J88: 0.14 | K88: $38.67 | L88: $5.41 | M88: $3.21 | N88: $3.21 | O88: $9
A89: 59 | B89: M3-M4 | C89: M1-M-2 | D89: 8" Dia 90 Degree Duct Bend | E89: 3 | F89: 0% | G89: 3 | H89: EA | I89: 0.14 | J89: 0.42 | K89: $38.67 | L89: $16.23 | M89: $3.17 | N89: $9.51 | O89: $26
A90: 60 | B90: M3-M4 | C90: M1-M-2 | D90: 6" Dia 90 Degree Duct Bend | E90: 6 | F90: 0% | G90: 6 | H90: EA | I90: 0.14 | J90: 0.84 | K90: $38.67 | L90: $32.46 | M90: $3.11 | N90: $18.66 | O90: $51
A91: 61 | B91: M3-M4 | C91: M1-M-2 | D91: 8" Dia 45 Degree Duct Bend | E91: 1 | F91: 0% | G91: 1 | H91: EA | I91: 0.21 | J91: 0.21 | K91: $38.67 | L91: $7.96 | M91: $2.92 | N91: $2.92 | O91: $11
A92: 62 | B92: M3-M4 | C92: M1-M-2 | D92: 6" Dia 45 Degree Duct Bend | E92: 3 | F92: 0% | G92: 3 | H92: EA | I92: 0.14 | J92: 0.42 | K92: $38.67 | L92: $16.23 | M92: $4.12 | N92: $12.36 | O92: $29
D94: Duct Reducer
A95: 63 | B95: M3-M4 | C95: M1-M-2 | D95: 26x16 TO 22x16 Duct Reducer | E95: 1 | F95: 0% | G95: =E95+(E95*F95) -> 1 | H95: EA | I95: 0.21 | J95: =I95*G95 -> 0.21 | K95: $38.67 | L95: =K95*J95 -> $7.96 | M95: $8.15 | N95: =M95*G95 -> $8.15 | O95: =L95+N95 -> $16
A96: 64 | B96: M3-M4 | C96: M1-M-2 | D96: 22x16 TO 18x14 Duct Reducer | E96: 1 | F96: 0% | G96: 1 | H96: EA | I96: 0.21 | J96: 0.21 | K96: $38.67 | L96: $7.96 | M96: $8.12 | N96: $8.12 | O96: $16
A97: 65 | B97: M3-M4 | C97: M1-M-2 | D97: 22x14 TO 16x12 Duct Reducer | E97: 1 | F97: 0% | G97: 1 | H97: EA | I97: 0.21 | J97: 0.21 | K97: $38.67 | L97: $7.96 | M97: $8.08 | N97: $8.08 | O97: $16
A98: 66 | B98: M3-M4 | C98: M1-M-2 | D98: 22x14 TO 20x14 Duct Reducer | E98: 1 | F98: 0% | G98: 1 | H98: EA | I98: 0.21 | J98: 0.21 | K98: $38.67 | L98: $7.96 | M98: $8.02 | N98: $8.02 | O98: $16
A99: 67 | B99: M3-M4 | C99: M1-M-2 | D99: 22x14 TO 16x10 Duct Reducer | E99: 1 | F99: 0% | G99: 1 | H99: EA | I99: 0.21 | J99: 0.21 | K99: $38.67 | L99: $7.96 | M99: $7.96 | N99: $7.96 | O99: $16
A100: 68 | B100: M3-M4 | C100: M1-M-2 | D100: 22x14 TO 10x12 Duct Reducer | E100: 1 | F100: 0% | G100: 1 | H100: EA | I100: 0.21 | J100: 0.21 | K100: $38.67 | L100: $7.96 | M100: $7.83 | N100: $7.83 | O100: $16
A101: 69 | B101: M3-M4 | C101: M1-M-2 | D101: 20x14 TO 16x12 Duct Reducer | E101: 1 | F101: 0% | G101: 1 | H101: EA | I101: 0.21 | J101: 0.21 | K101: $38.67 | L101: $7.96 | M101: $7.76 | N101: $7.76 | O101: $16
A102: 70 | B102: M3-M4 | C102: M1-M-2 | D102: 18x14 TO 16x14 Duct Reducer | E102: 1 | F102: 0% | G102: 1 | H102: EA | I102: 0.21 | J102: 0.21 | K102: $38.67 | L102: $7.96 | M102: $7.71 | N102: $7.71 | O102: $16
A103: 71 | B103: M3-M4 | C103: M1-M-2 | D103: 18x14 TO 12x14 Duct Reducer | E103: 1 | F103: 0% | G103: 1 | H103: EA | I103: 0.21 | J103: 0.21 | K103: $38.67 | L103: $7.96 | M103: $7.68 | N103: $7.68 | O103: $16
A104: 72 | B104: M3-M4 | C104: M1-M-2 | D104: 18x14 TO 12x12 Duct Reducer | E104: 1 | F104: 0% | G104: 1 | H104: EA | I104: 0.21 | J104: 0.21 | K104: $38.67 | L104: $7.96 | M104: $7.64 | N104: $7.64 | O104: $16
A105: 73 | B105: M3-M4 | C105: M1-M-2 | D105: 18x12 TO 10x12 Duct Reducer | E105: 1 | F105: 0% | G105: 1 | H105: EA | I105: 0.21 | J105: 0.21 | K105: $38.67 | L105: $7.96 | M105: $7.61 | N105: $7.61 | O105: $16
A106: 74 | B106: M3-M4 | C106: M1-M-2 | D106: 16x14 TO 10x12 Duct Reducer | E106: 1 | F106: 0% | G106: 1 | H106: EA | I106: 0.21 | J106: 0.21 | K106: $38.67 | L106: $7.96 | M106: $7.57 | N106: $7.57 | O106: $16
A107: 75 | B107: M3-M4 | C107: M1-M-2 | D107: 16x14 TO 12x14 Duct Reducer | E107: 1 | F107: 0% | G107: 1 | H107: EA | I107: 0.21 | J107: 0.21 | K107: $38.67 | L107: $7.96 | M107: $7.53 | N107: $7.53 | O107: $15
A108: 76 | B108: M3-M4 | C108: M1-M-2 | D108: 12x14 TO 8x14 Duct Reducer | E108: 1 | F108: 0% | G108: 1 | H108: EA | I108: 0.21 | J108: 0.21 | K108: $38.67 | L108: $7.96 | M108: $7.49 | N108: $7.49 | O108: $15
A109: 77 | B109: M3-M4 | C109: M1-M-2 | D109: 10x12 TO 10" Dia Duct Reducer | E109: 1 | F109: 0% | G109: 1 | H109: EA | I109: 0.21 | J109: 0.21 | K109: $38.67 | L109: $7.96 | M109: $7.38 | N109: $7.38 | O109: $15
A110: 78 | B110: M3-M4 | C110: M1-M-2 | D110: 10x10 TO 8x10 Duct Reducer | E110: 1 | F110: 0% | G110: 1 | H110: EA | I110: 0.21 | J110: 0.21 | K110: $38.67 | L110: $7.96 | M110: $7.18 | N110: $7.18 | O110: $15
A111: 79 | B111: M3-M4 | C111: M1-M-2 | D111: 8x10 TO 6x10 Duct Reducer | E111: 1 | F111: 0% | G111: =E111+(E111*F111) -> 1 | H111: EA | I111: 0.21 | J111: 0.21 | K111: $38.67 | L111: $7.96 | M111: $6.69 | N111: $6.69 | O111: $15
A112: 80 | B112: M3-M4 | C112: M1-M-2 | D112: 8" Dia x 6" Dia Duct Reducer | E112: 3 | F112: 0% | G112: 3 | H112: EA | I112: 0.21 | J112: 0.62 | K112: $38.67 | L112: $23.89 | M112: $6.09 | N112: $18.27 | O112: $42
D114: AIR DISTRIBUTION DEVICES
D116: Supply Diffusers
A117: 81 | B117: M3-M4 | C117: M1-M-2 | D117: SD-1 400 | E117: 3 | F117: 0% | G117: =E117+(E117*F117) -> 3 | H117: EA | I117: 0.32 | J117: =I117*G117 -> 0.96 | K117: $38.67 | L117: =K117*J117 -> $37.29 | M117: $240.00 | N117: =M117*G117 -> $720.00 | O117: =L117+N117 -> $757
A118: 82 | B118: M3-M4 | C118: M1-M-2 | D118: SD-1 395 | E118: 2 | F118: 0% | G118: 2 | H118: EA | I118: 0.32 | J118: 0.64 | K118: $38.67 | L118: $24.77 | M118: $235.00 | N118: $470.00 | O118: $495
A119: 83 | B119: M3-M4 | C119: M1-M-2 | D119: SD-1 390 | E119: 4 | F119: 0% | G119: 4 | H119: EA | I119: 0.32 | J119: 1.28 | K119: $38.67 | L119: $49.33 | M119: $225.00 | N119: $900.00 | O119: $949
A120: 84 | B120: M3-M4 | C120: M1-M-2 | D120: SD-1 375 | E120: 1 | F120: 0% | G120: 1 | H120: EA | I120: 0.32 | J120: 0.32 | K120: $38.67 | L120: $12.28 | M120: $220.00 | N120: $220.00 | O120: $232
A121: 85 | B121: M3-M4 | C121: M1-M-2 | D121: SD-1 350 | E121: 1 | F121: 0% | G121: 1 | H121: EA | I121: 0.32 | J121: 0.32 | K121: $38.67 | L121: $12.24 | M121: $205.00 | N121: $205.00 | O121: $217
A122: 86 | B122: M3-M4 | C122: M1-M-2 | D122: SD-1 290 | E122: 2 | F122: 0% | G122: 2 | H122: EA | I122: 0.32 | J122: 0.63 | K122: $38.67 | L122: $24.39 | M122: $195.00 | N122: $390.00 | O122: $414
A123: 87 | B123: M3-M4 | C123: M1-M-2 | D123: SD-1 285 | E123: 2 | F123: 0% | G123: 2 | H123: EA | I123: 0.31 | J123: 0.63 | K123: $38.67 | L123: $24.31 | M123: $185.00 | N123: $370.00 | O123: $394
A124: 88 | B124: M3-M4 | C124: M1-M-2 | D124: SD-1 245 | E124: 6 | F124: 0% | G124: 6 | H124: EA | I124: 0.32 | J124: 1.93 | K124: $38.67 | L124: $74.58 | M124: $170.00 | N124: $1,020.00 | O124: $1,095
A125: 89 | B125: M3-M4 | C125: M1-M-2 | D125: SD-1 240 | E125: 10 | F125: 0% | G125: 10 | H125: EA | I125: 0.32 | J125: 3.21 | K125: $38.67 | L125: $124.29 | M125: $160.00 | N125: $1,600.00 | O125: $1,724
A126: 90 | B126: M3-M4 | C126: M1-M-2 | D126: SD-1 235 | E126: 8 | F126: 0% | G126: 8 | H126: EA | I126: 0.32 | J126: 2.57 | K126: $38.67 | L126: $99.43 | M126: $155.00 | N126: $1,240.00 | O126: $1,339
A127: 91 | B127: M3-M4 | C127: M1-M-2 | D127: SD-1 225 | E127: 1 | F127: 0% | G127: 1 | H127: EA | I127: 0.32 | J127: 0.32 | K127: $38.67 | L127: $12.43 | M127: $140.00 | N127: $140.00 | O127: $152
A128: 92 | B128: M3-M4 | C128: M1-M-2 | D128: SD-1 200 | E128: 2 | F128: 0% | G128: 2 | H128: EA | I128: 0.32 | J128: 0.64 | K128: $38.67 | L128: $24.86 | M128: $130.00 | N128: $260.00 | O128: $285
A129: 93 | B129: M3-M4 | C129: M1-M-2 | D129: SD-1 195 | E129: 4 | F129: 0% | G129: 4 | H129: EA | I129: 0.32 | J129: 1.29 | K129: $38.67 | L129: $49.72 | M129: $125.00 | N129: $500.00 | O129: $550
A130: 94 | B130: M3-M4 | C130: M1-M-2 | D130: SD-1 190 | E130: 4 | F130: 0% | G130: 4 | H130: EA | I130: 0.32 | J130: 1.29 | K130: $38.67 | L130: $49.72 | M130: $115.00 | N130: $460.00 | O130: $510
A131: 95 | B131: M3-M4 | C131: M1-M-2 | D131: SD-1 100 | E131: 5 | F131: 0% | G131: 5 | H131: EA | I131: 0.32 | J131: 1.61 | K131: $38.67 | L131: $62.15 | M131: $90.00 | N131: $450.00 | O131: $512
D133: Note: 24" x 24" Aluminum Plaque Supply Air Diffuser. 360 Degree Fixed Pattern w/ Insulated Back Cover Finish: WHITE Basis of Design: METALAIRE 5750
D135: Return Grilles
A136: 96 | B136: M3-M4 | C136: M1-M-2 | D136: RG-1 1200R | E136: 2 | F136: 0% | G136: =E136+(E136*F136) -> 2 | H136: EA | I136: 0.32 | J136: =I136*G136 -> 0.64 | K136: $38.67 | L136: =K136*J136 -> $24.86 | M136: $148.00 | N136: =M136*G136 -> $296.00 | O136: =L136+N136 -> $321
A137: 97 | B137: M3-M4 | C137: M1-M-2 | D137: RG-1 1000R | E137: 6 | F137: 0% | G137: 6 | H137: EA | I137: 0.32 | J137: 1.93 | K137: $38.67 | L137: $74.58 | M137: $142.00 | N137: $852.00 | O137: $927
A138: 98 | B138: M3-M4 | C138: M1-M-2 | D138: RG-1 800R | E138: 4 | F138: 0% | G138: 4 | H138: EA | I138: 0.32 | J138: 1.29 | K138: $38.67 | L138: $49.72 | M138: $133.00 | N138: $532.00 | O138: $582
A139: 99 | B139: M3-M4 | C139: M1-M-2 | D139: RG-1 500R | E139: 1 | F139: 0% | G139: 1 | H139: EA | I139: 0.32 | J139: 0.32 | K139: $38.67 | L139: $12.43 | M139: $128.00 | N139: $128.00 | O139: $140
A140: 100 | B140: M3-M4 | C140: M1-M-2 | D140: RG-1 625R | E140: 1 | F140: 0% | G140: 1 | H140: EA | I140: 0.32 | J140: 0.32 | K140: $38.67 | L140: $12.43 | M140: $120.00 | N140: $120.00 | O140: $132
A141: 101 | B141: M3-M4 | C141: M1-M-2 | D141: RG-1 375R | E141: 1 | F141: 0% | G141: 1 | H141: EA | I141: 0.32 | J141: 0.32 | K141: $38.67 | L141: $12.43 | M141: $115.00 | N141: $115.00 | O141: $127
A142: =IF(H142<>"",1+MAX(A131:A141),"") -> 102 | B142: M3-M4 | C142: M1-M-2 | D142: RG-1 350R | E142: 1 | F142: 0% | G142: 1 | H142: EA | I142: 0.32 | J142: 0.32 | K142: $38.67 | L142: $12.43 | M142: $106.00 | N142: $106.00 | O142: $118
D144: 24" x 24" Aluminum Louvered Face Return Grille Finish: WHITE Basis of Design: METALAIRE Model: RH
D146: Transfer Grille
A147: 103 | B147: M3-M4 | C147: M1-M-2 | D147: TG-1 225 | E147: 2 | F147: 0% | G147: =E147+(E147*F147) -> 2 | H147: EA | I147: 0.32 | J147: =I147*G147 -> 0.64 | K147: $38.67 | L147: =K147*J147 -> $24.86 | M147: $155.00 | N147: =M147*G147 -> $310.00 | O147: =L147+N147 -> $335
A148: 104 | B148: M3-M4 | C148: M1-M-2 | D148: TG-1 25 | E148: 1 | F148: 0% | G148: 1 | H148: EA | I148: 0.35 | J148: 0.35 | K148: $38.67 | L148: $13.71 | M148: $68.00 | N148: $68.00 | O148: $82
D150: Note: 24" x 24" Aluminum Louvered Face Return Grille Finish: WHITE Basis of Design: METALAIRE Model: RH
D152: Supply Register
A153: 105 | B153: M3-M4 | C153: M1-M-2 | D153: SR-1 25 Aluminum Double Deflection Supply Register, Opposed Blade Balancing Damper, Adjustable Through Face Finish: White Basis of Design: Metalaire Model: LS4 | E153: 18 | F153: 0% | G153: =E153+(E153*F153) -> 18 | H153: EA | I153: 0.51 | J153: =I153*G153 -> 9.24 | K153: $38.67 | L153: =K153*J153 -> $357.41 | M153: $180.00 | N153: =M153*G153 -> $3,240.00 | O153: =L153+N153 -> $3,597
D155: Exhaust Grille
A156: 106 | B156: M3-M4 | C156: M1-M-2 | D156: Exhaust Grille | E156: 10 | F156: 0% | G156: =E156+(E156*F156) -> 10 | H156: EA | I156: 0.25 | J156: =I156*G156 -> 2.53 | K156: $38.67 | L156: =K156*J156 -> $97.94 | M156: $125.00 | N156: =M156*G156 -> $1,250.00 | O156: =L156+N156 -> $1,348
D158: Note: Aluminum Exhaust Grille Opposed Blade Balancing Damper, Adjustable Through Face. Finish: WHITE Basis of Design: METALAIRE Model: RH
D160: Plenum
A161: 107 | B161: M3-M4 | C161: M1-M-2 | D161: 48"x24" Return Plenum | E161: 1 | F161: 0% | G161: =E161+(E161*F161) -> 1 | H161: EA | I161: 0.25 | J161: =I161*G161 -> 0.25 | K161: $38.67 | L161: =K161*J161 -> $9.79 | M161: $85.00 | N161: =M161*G161 -> $85.00 | O161: =L161+N161 -> $95
D163: MECHANICAL EQUIPMENT
D165: Rooftop Units
A166: 108 | B166: M3-M4 | C166: M1-M-2 | D166: RTU-1 Manufacturer: LENNOX LCH060 | E166: 1 | F166: 0% | G166: =E166+(E166*F166) -> 1 | H166: EA | I166: 7.01 | J166: =I166*G166 -> 7.01 | K166: $38.67 | L166: =K166*J166 -> $271.17 | M166: $3,750.00 | N166: =M166*G166 -> $3,750.00 | O166: =L166+N166 -> $4,021
A167: 109 | B167: M3-M4 | C167: M1-M-2 | D167: RTU-2 Manufacturer: LENNOX LCH060 | E167: 1 | F167: 0% | G167: 1 | H167: EA | I167: 6.07 | J167: 6.07 | K167: $38.67 | L167: $234.80 | M167: $4,215.00 | N167: $4,215.00 | O167: $4,450
A168: 110 | B168: M3-M4 | C168: M1-M-2 | D168: RTU-3 Manufacturer: LENNOX LCH060 | E168: 1 | F168: 0% | G168: 1 | H168: EA | I168: 5.16 | J168: 5.16 | K168: $38.67 | L168: $199.71 | M168: $4,350.00 | N168: $4,350.00 | O168: $4,550
A169: 111 | B169: M3-M4 | C169: M1-M-2 | D169: RTU-4 Manufacturer: LENNOX LCH060 | E169: 1 | F169: 0% | G169: 1 | H169: EA | I169: 4.93 | J169: 4.93 | K169: $38.67 | L169: $190.78 | M169: $4,680.00 | N169: $4,680.00 | O169: $4,871
A170: 112 | B170: M3-M4 | C170: M1-M-2 | D170: RTU-5 Manufacturer: LENNOX LCH060 | E170: 1 | F170: 0% | G170: 1 | H170: EA | I170: 4.55 | J170: 4.55 | K170: $38.67 | L170: $176.10 | M170: $5,110.00 | N170: $5,110.00 | O170: $5,286
A171: 113 | B171: M3-M4 | C171: M1-M-2 | D171: RTU-6 Manufacturer: LENNOX LCH060 | E171: 1 | F171: 0% | G171: 1 | H171: EA | I171: 3.98 | J171: 3.98 | K171: $38.67 | L171: $153.77 | M171: $5,340.00 | N171: $5,340.00 | O171: $5,494
A172: 114 | B172: M3-M4 | C172: M1-M-2 | D172: RTU-7 Manufacturer: LENNOX LCH060 | E172: 1 | F172: 0% | G172: 1 | H172: EA | I172: 5.92 | J172: 5.92 | K172: $38.67 | L172: $229.06 | M172: $5,500.00 | N172: $5,500.00 | O172: $5,729
A173: 115 | B173: M3-M4 | C173: M1-M-2 | D173: RTU-8 Manufacturer: LENNOX LCH060 | E173: 1 | F173: 0% | G173: 1 | H173: EA | I173: 6.81 | J173: 6.81 | K173: $38.67 | L173: $263.52 | M173: $5,680.00 | N173: $5,680.00 | O173: $5,944
D175: Split System Unit
A176: 116 | B176: M3-M4 | C176: M1-M-2 | D176: SS-1 Manufacturer: MITSUBISHI Model: SLZ-KF09/SUZ-KA09 | E176: 1 | F176: 0% | G176: 1 | H176: EA | I176: 3.13 | J176: =I176*G176 -> 3.13 | K176: $38.67 | L176: =K176*J176 -> $121.04 | M176: $3,640.00 | N176: =M176*G176 -> $3,640.00 | O176: =L176+N176 -> $3,761
D178: Condensing Unit
A179: 117 | B179: M3-M4 | C179: M1-M-2 | D179: OU-1 Manufacturer: MITSUBISHI Model: SLZ-KF09/SUZ-KA09 | E179: 1 | F179: 0% | G179: =E179+(E179*F179) -> 1 | H179: EA | I179: 2.18 | J179: =I179*G179 -> 2.18 | K179: $38.67 | L179: =K179*J179 -> $84.30 | M179: $2,620.00 | N179: =M179*G179 -> $2,620.00 | O179: =L179+N179 -> $2,704
D181: Exhaust Fans
A182: 118 | B182: M3-M4 | C182: M1-M-2 | D182: EF-1 70E Manufacturer: GREENHECK Model: SP-A110 | E182: 9 | F182: 0% | G182: =E182+(E182*F182) -> 9 | H182: EA | I182: 0.86 | J182: =I182*G182 -> 7.75 | K182: $38.67 | L182: =K182*J182 -> $299.65 | M182: $145.00 | N182: =M182*G182 -> $1,305.00 | O182: =L182+N182 -> $1,605
A183: 119 | B183: M3-M4 | C183: M1-M-2 | D183: EF-2 70E Manufacturer: GREENHECK Model: SP-A110 | E183: 1 | F183: 0% | G183: 1 | H183: EA | I183: 0.66 | J183: 0.66 | K183: $38.67 | L183: $25.56 | M183: $120.00 | N183: $120.00 | O183: $146
D185: SAFETY DEVICES
D187: Smoke Detectors
A188: 120 | B188: M3-M4 | C188: M1-M-2 | D188: Duct Smoke Detector | E188: 8 | F188: 0% | G188: =E188+(E188*F188) -> 8 | H188: EA | I188: 0.05 | J188: =I188*G188 -> 0.37 | K188: $38.67 | L188: =K188*J188 -> $14.26 | M188: $85.00 | N188: =M188*G188 -> $680.00 | O188: =L188+N188 -> $694
A189: 121 | B189: M3-M4 | C189: M1-M-2 | D189: Remote Indicating Light and Audible Alarm w/ Keyed Switch | E189: 8 | F189: 0% | G189: =E189+(E189*F189) -> 8 | H189: EA | I189: 0.04 | J189: 0.29 | K189: $38.67 | L189: $11.17 | M189: $70.00 | N189: $560.00 | O189: $571
D191: CONTROL DEVICES
D193: Humidistat
A194: 122 | B194: M3-M4 | C194: M1-M-2 | D194: RTU-8 Humidistat | E194: 1 | F194: 0% | G194: =E194+(E194*F194) -> 1 | H194: EA | I194: 0.14 | J194: =I194*G194 -> 0.14 | K194: $38.67 | L194: =K194*J194 -> $5.26 | M194: $165.00 | N194: =M194*G194 -> $165.00 | O194: =L194+N194 -> $170
A195: 123 | B195: M3-M4 | C195: M1-M-2 | D195: RTU-7 Humidistat | E195: 1 | F195: 0% | G195: 1 | H195: EA | I195: 0.14 | J195: =I195*G195 -> 0.14 | K195: $38.67 | L195: =K195*J195 -> $5.26 | M195: $145.00 | N195: =M195*G195 -> $145.00 | O195: =L195+N195 -> $150
A196: 124 | B196: M3-M4 | C196: M1-M-2 | D196: RTU-6 Humidistat | E196: 2 | F196: 0% | G196: 2 | H196: EA | I196: 0.14 | J196: 0.27 | K196: $38.67 | L196: $10.53 | M196: $150.00 | N196: $300.00 | O196: $311
A197: 125 | B197: M3-M4 | C197: M1-M-2 | D197: RTU-5 Humidistat | E197: 1 | F197: 0% | G197: 1 | H197: EA | I197: 0.14 | J197: 0.14 | K197: $38.67 | L197: $5.26 | M197: $150.00 | N197: $150.00 | O197: $155
A198: 126 | B198: M3-M4 | C198: M1-M-2 | D198: RTU-4 Humidistat | E198: 1 | F198: 0% | G198: 1 | H198: EA | I198: 0.14 | J198: 0.14 | K198: $38.67 | L198: $5.26 | M198: $150.00 | N198: $150.00 | O198: $155
A199: 127 | B199: M3-M4 | C199: M1-M-2 | D199: RTU-3 Humidistat | E199: 1 | F199: 0% | G199: 1 | H199: EA | I199: 0.14 | J199: 0.14 | K199: $38.67 | L199: $5.26 | M199: $150.00 | N199: $150.00 | O199: $155
A200: 128 | B200: M3-M4 | C200: M1-M-2 | D200: RTU-2 Humidistat | E200: 1 | F200: 0% | G200: 1 | H200: EA | I200: 0.14 | J200: 0.14 | K200: $38.67 | L200: $5.26 | M200: $150.00 | N200: $150.00 | O200: $155
A201: 129 | B201: M3-M4 | C201: M1-M-2 | D201: RTU-1 Humidistat | E201: 1 | F201: 0% | G201: 1 | H201: EA | I201: 0.14 | J201: 0.14 | K201: $38.67 | L201: $5.26 | M201: $150.00 | N201: $150.00 | O201: $155
D203: Thermostat
A204: 130 | B204: M3-M4 | C204: M1-M-2 | D204: RTU-8 Programmable Thermostat W/ Night Setback | E204: 1 | F204: 0% | G204: =E204+(E204*F204) -> 1 | H204: EA | I204: 0.44 | J204: =I204*G204 -> 0.44 | K204: $38.67 | L204: =K204*J204 -> $16.86 | M204: $150.00 | N204: =M204*G204 -> $150.00 | O204: =L204+N204 -> $167
A205: 131 | B205: M3-M4 | C205: M1-M-2 | D205: RTU-7 Programmable Thermostat W/ Night Setback | E205: 1 | F205: 0% | G205: 1 | H205: EA | I205: 0.44 | J205: 0.44 | K205: $38.67 | L205: $16.86 | M205: $150.00 | N205: $150.00 | O205: $167
A206: =IF(H206<>"",1+MAX(A195:A205),"") -> 132 | B206: M3-M4 | C206: M1-M-2 | D206: RTU-6 Programmable Thermostat W/ Night Setback | E206: 2 | F206: 0% | G206: 2 | H206: EA | I206: 0.44 | J206: 0.87 | K206: $38.67 | L206: $33.73 | M206: $150.00 | N206: $300.00 | O206: $334
A207: 133 | B207: M3-M4 | C207: M1-M-2 | D207: RTU-5 Programmable Thermostat W/ Night Setback | E207: 1 | F207: 0% | G207: 1 | H207: EA | I207: 0.44 | J207: 0.44 | K207: $38.67 | L207: $16.86 | M207: $150.00 | N207: $150.00 | O207: $167
A208: 134 | B208: M3-M4 | C208: M1-M-2 | D208: RTU-4 Programmable Thermostat W/ Night Setback | E208: 1 | F208: 0% | G208: =E208+(E208*F208) -> 1 | H208: EA | I208: 0.44 | J208: 0.44 | K208: $38.67 | L208: $16.86 | M208: $150.00 | N208: $150.00 | O208: $167
A209: 135 | B209: M3-M4 | C209: M1-M-2 | D209: RTU-3 Programmable Thermostat W/ Night Setback | E209: 1 | F209: 0% | G209: 1 | H209: EA | I209: 0.44 | J209: 0.44 | K209: $38.67 | L209: $16.86 | M209: $150.00 | N209: $150.00 | O209: $167
A210: 136 | B210: M3-M4 | C210: M1-M-2 | D210: RTU-2 Programmable Thermostat W/ Night Setback | E210: 1 | F210: 0% | G210: =E210+(E210*F210) -> 1 | H210: EA | I210: 0.44 | J210: 0.44 | K210: $38.67 | L210: $16.86 | M210: $150.00 | N210: $150.00 | O210: $167
A211: 137 | B211: M3-M4 | C211: M1-M-2 | D211: RTU-1 Programmable Thermostat W/ Night Setback | E211: 1 | F211: 0% | G211: 1 | H211: EA | I211: 0.44 | J211: 0.44 | K211: $38.67 | L211: $16.86 | M211: $150.00 | N211: $150.00 | O211: $167
A212: 138 | B212: M3-M4 | C212: M1-M-2 | D212: SS-1 Programmable Thermostat | E212: 1 | F212: 0% | G212: 1 | H212: EA | I212: 0.44 | J212: 0.44 | K212: $38.67 | L212: $16.86 | M212: $185.00 | N212: $185.00 | O212: $202
D214: Dampers
A215: 139 | B215: M3-M4 | C215: M1-M-2 | D215: Factory Fabricated Manual Volume Control Dampers at Brach Ducts Note: Type is Assumed | E215: 28 | F215: 0% | G215: =E215+(E215*F215) -> 28 | H215: EA | I215: 0.44 | J215: =I215*G215 -> 12.21 | K215: $38.67 | L215: =K215*J215 -> $472.19 | M215: $110.00 | N215: =M215*G215 -> $3,080.00 | O215: =L215+N215 -> $3,552
D217: MECHANICAL EQUIPMENT ACCESSORIES
D219: RTU Accessories
A220: 140 | B220: M3-M4 | C220: M1-M-2 | D220: 7'-0" Long x 4'-0" Wide Roof Curb for RTU's | E220: =1*8 -> 8 | F220: 0% | G220: =E220+(E220*F220) -> 8 | H220: EA | I220: 0.24 | J220: =I220*G220 -> 1.89 | K220: $38.67 | L220: =K220*J220 -> $73.04 | M220: $19.18 | N220: =M220*G220 -> $153.44 | O220: =L220+N220 -> $226
A221: 141 | B221: M3-M4 | C221: M1-M-2 | D221: Motorized Dampers | E221: 8 | F221: 0% | G221: 8 | H221: EA | I221: 0.19 | J221: =I221*G221 -> 1.49 | K221: $38.67 | L221: =K221*J221 -> $57.57 | M221: $18.25 | N221: =M221*G221 -> $146.00 | O221: =L221+N221 -> $204
A222: 142 | B222: M3-M4 | C222: M1-M-2 | D222: Coil Guards | E222: 8 | F222: 0% | G222: =E222+(E222*F222) -> 8 | H222: EA | I222: 0.19 | J222: 1.49 | K222: $38.67 | L222: $57.57 | M222: $35.01 | N222: $280.08 | O222: $338
A223: 143 | B223: M3-M4 | C223: M1-M-2 | D223: Hot Gas Re-heat for RTU's | E223: 8 | F223: 0% | G223: 8 | H223: EA | I223: 0.19 | J223: 1.49 | K223: $38.67 | L223: $57.57 | M223: $38.28 | N223: $306.24 | O223: $364
A224: 144 | B224: M3-M4 | C224: M1-M-2 | D224: Economizer W/Enthalpy Controls for RTU's | E224: 8 | F224: 0% | G224: =E224+(E224*F224) -> 8 | H224: EA | I224: 0.19 | J224: 1.49 | K224: $38.67 | L224: $57.57 | M224: $42.19 | N224: $337.52 | O224: $395
A225: 145 | B225: M3-M4 | C225: M1-M-2 | D225: Barometric Relief Damper for RTU's | E225: 8 | F225: 0% | G225: 8 | H225: EA | I225: 0.19 | J225: 1.49 | K225: $38.67 | L225: $57.57 | M225: $48.26 | N225: $386.08 | O225: $444
A226: 146 | B226: M3-M4 | C226: M1-M-2 | D226: Extra Set of Filters for RTU's | E226: 8 | F226: 0% | G226: 8 | H226: EA | I226: 0.19 | J226: 1.49 | K226: $38.67 | L226: $57.57 | M226: $45.10 | N226: $360.80 | O226: $418
A227: 147 | B227: M3-M4 | C227: M1-M-2 | D227: Thru Curb Electrical for RTU's | E227: 8 | F227: 0% | G227: 8 | H227: EA | I227: 0.19 | J227: 1.49 | K227: $38.67 | L227: $57.57 | M227: $16.28 | N227: $130.24 | O227: $188
A228: 148 | B228: M3-M4 | C228: M1-M-2 | D228: Belt Drive Supply Fan Motor for RTU's | E228: 8 | F228: 0% | G228: 8 | H228: EA | I228: 0.19 | J228: 1.49 | K228: $38.67 | L228: $57.57 | M228: $62.15 | N228: $497.20 | O228: $555
A229: 149 | B229: M3-M4 | C229: M1-M-2 | D229: Secondary Drain Pan for RTU's | E229: 8 | F229: 0% | G229: =E229+(E229*F229) -> 8 | H229: EA | I229: 0.19 | J229: 1.49 | K229: $38.67 | L229: $57.57 | M229: $15.18 | N229: $121.44 | O229: $179
A230: 150 | B230: M3-M4 | C230: M1-M-2 | D230: Float Switch for RTU's | E230: 8 | F230: 0% | G230: 8 | H230: EA | I230: 0.19 | J230: 1.49 | K230: $38.67 | L230: $57.57 | M230: $65.00 | N230: $520.00 | O230: $578
A231: 151 | B231: M3-M4 | C231: M1-M-2 | D231: Bi-Polar Ionization for RTU's | E231: 8 | F231: 0% | G231: 8 | H231: EA | I231: 0.19 | J231: 1.49 | K231: $38.67 | L231: $57.57 | M231: $55.00 | N231: $440.00 | O231: $498
A232: 152 | B232: M3-M4 | C232: M1-M-2 | D232: Rooftop Equipment Tags Note: Tag shall be Phenolic Resin W/ A Black Background and White Lettering Minimum 1/2" in Size. Label Size shall be 2-1/2" x 3/4" | E232: 8 | F232: 0% | G232: 8 | H232: EA | I232: 0.19 | J232: 1.49 | K232: $38.67 | L232: $57.57 | M232: $1.22 | N232: $9.76 | O232: $67
A233: 153 | B233: M3-M4 | C233: M1-M-2 | D233: Outside Air Hood for RTU | E233: =10*8 -> 80 | F233: 0% | G233: =E233+(E233*F233) -> 80 | H233: LF | I233: 0.01 | J233: 0.93 | K233: $38.67 | L233: $35.92 | M233: $4.25 | N233: $340.00 | O233: $376
D235: SS-1 Accessories
A236: 154 | B236: M3-M4 | C236: M1-M-2 | D236: Condenser Coil Guards | E236: 1 | F236: 0% | G236: =E236+(E236*F236) -> 1 | H236: EA | I236: 0.19 | J236: =I236*G236 -> 0.19 | K236: $38.67 | L236: =K236*J236 -> $7.20 | M236: $35.01 | N236: =M236*G236 -> $35.01 | O236: =L236+N236 -> $42
A237: 155 | B237: M3-M4 | C237: M1-M-2 | D237: 4" Thick Fiber mesh Reinforced Concrete Pad for OU-1 | E237: 1 | F237: 0% | G237: 1 | H237: EA | I237: 0.45 | J237: =I237*G237 -> 0.45 | K237: $38.67 | L237: =K237*J237 -> $17.48 | M237: $480.00 | N237: =M237*G237 -> $480.00 | O237: =L237+N237 -> $497
D239: Ou-1 Accessories
A240: 156 | B240: M3-M4 | C240: M1-M-2 | D240: Aluminum Condensing Unit Rack Manufacturer: Aluma-Stand | E240: 1 | F240: 0% | G240: =E240+(E240*F240) -> 1 | H240: EA | I240: 0.29 | J240: =I240*G240 -> 0.29 | K240: $38.67 | L240: =K240*J240 -> $11.06 | M240: $45.12 | N240: =M240*G240 -> $45.12 | O240: =L240+N240 -> $56
... 30 more rows

Sheet UJ (hidden)
C2: PROJECT: | D2: 625 PARK AVE PHASE 1B
C3: ADDRESS: | D3: 625 PARK AVENUE,
D4: NEW YORK, NY-10065.
H6: DATE | I6: =TODAY() -> 2026-07-28
A7: ITEM # | B7: CSI SEC. | C7: DESCRIPTION | D7: QTY. | E7: WASTE | F7: QTY. W/ WASTE | G7: UNIT | H7: UNIT COST | I7: TRADE COST | L7: Single side areas
C8: SCOPE OF WORK | L8: Dry | M8: Wet
A9: 1 | B9: 09 29 | C9: 2 layered 5/8" thick USG fiberock brand panels for walls and ceilings. | D9: 11,635 | E9: 10% | F9: =D9*(1+E9) -> 12,799 | G9: sf | H9: $4.0 | I9: =H9*F9 -> $51,194 | J9: Type 1+Type 4+Type 6+ceiling | K9: Type 1 | L9: =2520-80 -> 2440 | M9: 280 | N9: =(2440*2+290*2+2345+3830) -> 11635
A10: 2 | B10: 09 29 | C10: 2 layerd 5/8" thick USG fiberock aqua tough brand panels for wall and ceilings in wet areas. | D10: 1,185 | E10: 10% | F10: =D10*(1+E10) -> 1,304 | G10: sf | H10: $4.5 | I10: $5,866 | J10: Type 1+Type 4+Type 6+wet ceiling | K10: Type 2 | L10: =210-80 -> 130 | M10: 80 | N10: =(280*2+325+300) -> 1185
A11: 3 | B11: 09 29 | C11: 2 layered 2 HR rated 5/8" thick USG fiberock brand panels for walls. | D11: 260 | E11: 10% | F11: =D11*(1+E11) -> 286 | G11: sf | H11: $4.5 | I11: $1,287 | J11: Type 2 | K11: Type 3 | N11: =130*2 -> 260
A12: 4 | B12: 09 29 | C12: 2 layered 2 HR rated 5/8" thick USG fiberock aqua tough brand panels for walls in wet areas. | D12: 160 | E12: 10% | F12: 176 | G12: sf | H12: $5.0 | I12: $880 | J12: Type 2 | K12: Type 4 | L12: 290 | N12: =80*2 -> 160
A13: 5 | B13: 09 29 | C13: 3 layered 3 HR rated 5/8" thick USG fiberock brand panels for walls. | D13: 300 | E13: 10% | F13: 330 | G13: sf | H13: $4.0 | I13: $1,320 | J13: Type 7 | K13: Type 5 | L13: 1200 | N13: =150*2 -> 300
A14: 6 | B14: 09 26 | C14: 3/32" thick gypsum veneer plaster skim coat. | D14: 14,740 | E14: 10% | F14: 16,214 | G14: sf | H14: $4.0 | I14: $64,856 | J14: Type 1+Type 2+ Type 4+Type 5+Type 6 +Type 7 | K14: Type 6 | L14: =2670-325 -> 2345 | M14: 325 | N14: =SUM(N9:N13)+L13 -> 14740 | O14: =SUM(L9:M10)*2+L13+SUM(L14:M14)+L15*2+SUM(L17:M17)+L12*2 -> 14740 | P14: =N14-O14 -> 0
A15: 7 | B15: 09 22 16 | C15: 3-5/8" steel studs 20 GA @ 16" O.C. | D15: 5,750 | E15: 10% | F15: 6,325 | G15: sf | H15: $2.5 | I15: $15,813 | J15: Type 1+Type 2+Type 6+Type 7 | K15: Type 7 | L15: 150 | N15: =SUM(L9:M10)+SUM(L14:M15) -> 5750
A16: 8 | B16: 10 22 16 | C16: 1-5/8" steel studs 20 GA @ 12" O.C. | D16: 290 | E16: 10% | F16: 319 | G16: sf | H16: $2.0 | I16: $638 | J16: Type 4 | K16: Type 8 | L16: 20
A17: 8 | B17: 09 22 26 | C17: Ceiling suspension system. | D17: 4,130 | E17: 10% | F17: 4,543 | G17: sf | H17: $3.0 | I17: $13,629 | K17: Ceiling | L17: 3830 | M17: 300 | N17: =SUM(L17:M17) -> 4130
A18: 9 | B18: 07 21 16 | C18: Batt Insulation. | D18: 5,600 | E18: 5% | F18: 5,880 | G18: sf | H18: $2.0 | I18: $11,760 | J18: Type 1+Type 2+ Type 6 | N18: =SUM(L9:M10)+SUM(L14:M14) -> 5600
A19: 10 | B19: 07 21 16 | C19: Batt Insulation type SAFB. | D19: 150 | E19: 10% | F19: 165 | G19: sf | H19: $2.2 | I19: $363 | J19: Type 7 | N19: 150
A21: SUB TOTAL | I21: =SUM(I9:I19) -> $167,605
A22: INSURANCE (3%) | I22: =(3/100)*I21 -> $5,028
A23: TOTAL BASE BID | I23: =SUM(I21:I22) -> $172,633
C25: Exclusions
B26: 1 | C26: Mouldings
B27: 2 | C27: Patch work
B28: 3 | C28: Fixtures
B29: 4 | C29: Electrical work
B30: 5 | C30: Stone and/or tile work
B31: 6 | C31: Wall type 8 [no details on provided on the drawing]

Sheet DETAIL (2) (hidden)
B2: PROJECT: | C2: 625 PARK AVE PHASE 1B
B3: ADDRESS: | C3: 625 PARK AVENUE
C4: NEW YORK, NY 10065
E6: DATE | F6: =TODAY() -> 2026-07-28
A7: ITEM # | B7: DESCRIPTION | C7: UNIT COST | D7: QTY. | E7: UNIT | F7: TRADE COST
B8: SCOPE OF WORK
A9: 1 | B9: 5/8" 2 layered USG fiberock brand panels. | D9: =((2358+277+2077)-644)+3830 -> 7,898 | E9: sf | F9: =C9*D9 -> 0 | G9: Type 1+Type 4+Type 6+ceiling
A10: 2 | B10: 5/8" 2 layered USG fiberock aqua tough brand panels. (Wet area). | D10: =644+292 -> 936 | E10: sf | F10: =C10*D10 -> 0 | G10: Type 1+Type 4+Type 6+wet ceiling | I10: Height 9'6"
A11: 3 | B11: 2 HR rated 5/8" 2 layered USG fiberock brand panels. | D11: =206-78 -> 128 | E11: sf | F11: 0 | G11: Type 2 | I11: For Doors & Cabinets 1'3"
A12: 4 | B12: 2 HR rated 5/8" 2 layered USG fiberock aqua tough brand panels. (Wet area). | D12: 78 | E12: sf | F12: 0 | G12: Type 2
A13: 5 | B13: 3 HR rated 5/8" 3 layered USG fiberock brand panels. | D13: 148 | E13: sf | F13: 0 | G13: Type 7
A14: 6 | B14: 3/32" thick gypsum veneer plaster skim coat. | D14: =2538+206+277+1343+2077+148 -> 6,589 | E14: sf | F14: 0 | G14: Type 1+Type 2+ Type 4+Type 5+Type 6 +Type 7
A15: 7 | B15: 3 5/8" steel studs 20 GA @ 16" O.C. | D15: 4,968 | E15: sf | F15: 0 | G15: Type 1+Type 2+Type 6+Type 7
A16: 8 | B16: 1 5/8" steel studs 20 GA @ 12" O.C. | D16: 277 | E16: sf | F16: 0 | G16: Type 4
A17: 9 | B17: Batt sound Insulation. | D17: =2538+206+2077 -> 4,821 | E17: sf | F17: 0 | G17: Type 1+Type 2+ Type 6
A18: 10 | B18: Batt sound Insulation type SAFB. | D18: 148 | E18: sf | F18: 0 | G18: Type 7 | H18: QTY Details
H19: Type 1 | I19: 2538 | J19: 2520
A20: TOTAL | F20: =SUM(F9:F18) -> 0 | H20: Type 2 | I20: 205 | J20: 206
B21: Exclusions | H21: Type 3 | I21: N/A
A22: 1 | B22: Mouldings | H22: Type 4 | I22: 277 | J22: 290
A23: 2 | B23: Patch work | H23: Type 5 | I23: 1342 | J23: 1200
A24: 3 | B24: Fixtures | H24: Type 6 | I24: 2077 | J24: 2670
A25: 4 | B25: Electrical work | H25: Type 7 | I25: 148 | J25: 150
A26: 5 | B26: Stone and/or tile work | H26: Type 8 | I26: 22 | J26: 20 | K26: No details given
A27: 6 | H27: Ceiling | I27: 3830
H28: Wet Ceiling | I28: 292
B31: DETAILS
B32: Type 1- Interior Partition | G32: Type 2- 2HR rated Interior Partition | H32: Type
B33: 2 layers 5/8' USG fiberock brand panels (Fiberock aqua tough brand at all wet areas) Glue second layer, finished with 3-32" thick gypsum veneer plaster skim coat. 3 5/8" Stl studs 20 GA @16" O.C with Batt insulation. 2 layers 5/8" USG fiberock brand panels(Fiberock aqua tough brand at all wet areas finished 3-32" thick gypsum veneer plaster skim coat | G33: 2 layers 5/8' USG fiberock brand panels (Fiberock aqua tough brand at all wet areas) Glue second layer, finished with 3-32" thick gypsum veneer plaster skim coat. 3 5/8" Stl studs 20 GA @16" O.C with Batt insulation. 2 layers 5/8" USG fiberock brand panels(Fiberock aqua tough brand at all wet areas finished 3-32" thick gypsum veneer plaster skim coat
B35: TYPE 3 Interior partition at chase | G35: TYPE 4 Pocket door partition
B36: 2 layer 5/8" USG fiberock brand panels ( Fiberock aqua tough brand at all wet areas ) Glue second layer fill batt insulation, finished with 3/32" thick gypsum veneer plaster skim coat. 20 Ga 2-1/2" mtl studs @ 16 O.C. with batt insulation. Pipe chase space. 2 layers 5/8" USG fiberock brand panels (Fiberock aqua tough brand at all wet areas finished with 3/32" thick gypsum veneer plaster skim coat. | G36: 2 Layers 5/8" USG fiberock brand panels (Fiberock Aqua tough brand at all wet areas) Glue second layer, Finished with 3/32" thick gypsum veneer plaster skim coat. 1 5/8" 20 Ga stl studs @12 O.C. 2 layer 5/8" USG fiberock brand panels (fiberock aqua tough brand at wet areas) finished with 3/32" thick gypsum veneer plaster skim coat.
B38: TYPE 5 Existing wall skim coat | G38: TYPE 6 EXISTING WALL- Furring
B39: Apply 3/32" Thick gypsum veneer skim coat. Fill and smooth all imperfections | G39: 3 5/8" 20 Ga stl studs @ 16 O.C. 2 layers 5/8" USG fiberock brand panels dimensions from exterior wall to be varified with architect. Fill with Batt insulation, Finished with 3/32" Thick Gypsum veneer plaster skim coat
B40: TYPE 7 Interior Partition- 3 Hr rated
B41: 3 layer 5/8" USG fiberock brand panels, glue third layer finished with 3/32" thick gypsum veneer plaster skim coat. 3 5/8" stl studs 20 GA @16"O.C. Batt insulation Type SAFB. 3 layer 5/8" USG fiberock brand panels, glue third layer finished with 3-32" thick gypsum veneer plaster skim coat
